fUST/lending_fUST_20251004
["ID","MTS","AMOUNT","RATE_DAILY","PERIOD"]
[388975432,1759552263627,-191.26472542,0.00025205,9]
[388975433,1759552263636,-500.0,0.00025205,9]
[388975434,1759552263645,-965.58,0.00025205,9]
[388975435,1759552263654,-500.0,0.00025205,9]
[388975436,1759552263664,-500.0,0.00025205,9]
[388975437,1759552263673,-500.0,0.00025205,9]
[388975438,1759552263683,-500.0,0.00025205,9]
[388975439,1759552263692,-1198.5,0.00025205,9]
[388975440,1759552263702,-500.0,0.00025205,9]
[388975441,1759552263711,-1223.62,0.00025205,9]
[388975442,1759552263720,-500.0,0.00025205,9]
[388975443,1759552263731,-500.0,0.00025205,9]
[388975444,1759552263740,-500.0,0.00025205,9]
[388975445,1759552263750,-500.0,0.00025205,9]
[388975446,1759552263760,-500.0,0.00025205,9]
[388975447,1759552263773,-1455.18,0.00025205,9]
[388975448,1759552263782,-534.17,0.00025205,9]
[388975449,1759552263791,-186.93841996,0.00025205,9]
[388975450,1759552263800,-500.0,0.00025205,9]
[388975451,1759552263810,-500.0,0.00025205,9]
[388975452,1759552263819,-500.0,0.00025205,9]
[388975453,1759552263827,-847.75,0.00025205,9]
[388975454,1759552263836,-500.0,0.00025205,9]
[388975455,1759552263846,-500.0,0.00025205,9]
[388975456,1759552263855,-500.0,0.00025205,9]
[388975457,1759552263864,-500.0,0.00025205,9]
[388975458,1759552263873,-861.7,0.00025205,9]
[388975459,1759552263883,-500.0,0.00025205,9]
[388975460,1759552263892,-500.0,0.00025205,9]
[388975461,1759552263901,-1727.25,0.00025205,9]
[388975462,1759552263910,-1008.47,0.00025205,9]
[388975463,1759552263919,-500.0,0.00025205,9]
[388975464,1759552263929,-500.0,0.00025205,9]
[388975465,1759552263938,-500.0,0.00025205,9]
[388975466,1759552263947,-500.0,0.00025205,9]
[388975467,1759552263956,-500.0,0.00025205,9]
[388975468,1759552263966,-500.0,0.00025205,9]
[388975469,1759552263975,-500.0,0.00025205,9]
[388975470,1759552264034,-500.0,0.00025205,9]
[388975471,1759552264044,-518.69,0.00025205,9]
[388975472,1759552264053,-500.0,0.00025205,9]
[388975473,1759552264062,-428.21618788,0.00025205,9]
[388975474,1759552264072,-500.0,0.00025205,9]
[388975475,1759552264082,-863.41,0.00025205,9]
[388975476,1759552264093,-500.0,0.00025205,9]
[388975477,1759552264102,-500.0,0.00025205,9]
[388975478,1759552264111,-500.0,0.00025205,9]
[388975479,1759552264120,-2385.13,0.00025205,9]
[388975480,1759552264131,-500.0,0.00025205,9]
[388975481,1759552264139,-901.17,0.00025205,9]
[388975482,1759552264149,-500.0,0.00025205,9]
[388975483,1759552264159,-500.0,0.00025205,9]
[388975484,1759552264169,-500.0,0.00025205,9]
[388975485,1759552264179,-500.0,0.00025205,9]
[388975486,1759552264188,-500.0,0.00025205,9]
[388975487,1759552264197,-500.0,0.00025205,9]
[388975488,1759552264207,-1118.83,0.00025205,9]
[388975489,1759552264216,-638.65,0.00025205,9]
[388975490,1759552264225,-500.0,0.00025205,9]
[388975491,1759552264234,-500.0,0.00025205,9]
[388975492,1759552264243,-500.0,0.00025205,9]
[388975493,1759552264252,-500.0,0.00025205,9]
[388975494,1759552264261,-500.0,0.00025205,9]
[388975495,1759552264270,-778.44,0.00025205,9]
[388975496,1759552264280,-500.0,0.00025205,9]
[388975497,1759552264290,-924.33,0.00025205,9]
[388975498,1759552264299,-1485.49,0.00025205,9]
[388975499,1759552264308,-1244.21,0.00025205,9]
[388975500,1759552264317,-151.0,0.00025205,7]
[388975501,1759552264326,-500.0,0.00025205,9]
[388975502,1759552264336,-237.360647,0.00025205,7]
[388975503,1759552264345,-500.0,0.00025205,9]
[388975504,1759552264354,-500.0,0.00025205,9]
[388975505,1759552264363,-500.0,0.00025205,9]
[388975506,1759552264372,-500.0,0.00025205,9]
[388975507,1759552264381,-500.0,0.00025205,9]
[388975508,1759552264390,-672.33,0.00025205,9]
[388975509,1759552264400,-426.29412645,0.00025205,9]
[388975510,1759552264409,-644.15,0.00025205,9]
[388975511,1759552264418,-500.0,0.00025205,9]
[388975512,1759552264427,-1260.08,0.00025205,9]
[388975513,1759552264436,-2917.92,0.00025205,9]
[388975514,1759552264446,-500.0,0.00025205,9]
[388975515,1759552264455,-151.0,0.00025205,7]
[388975516,1759552264464,-1138.19,0.00025205,9]
[388975517,1759552264473,-155.183092,0.00025205,7]
[388975518,1759552264483,-151.0,0.00025205,7]
[388975519,1759552264492,-202.761842,0.00025205,7]
[388975520,1759552264501,-500.0,0.00025205,9]
[388975521,1759552264510,-1055.73,0.00025205,9]
[388975522,1759552264519,-500.0,0.00025205,9]
[388975523,1759552264528,-500.0,0.00025205,2]
[388975524,1759552264537,-500.0,0.00025205,9]
[388975525,1759552264546,-500.0,0.00025205,9]
[388975526,1759552264555,-612.99,0.00025205,9]
[388975527,1759552264564,-500.0,0.00025205,9]
[388975528,1759552264573,-3787.08,0.00025205,9]
[388975529,1759552264582,-500.0,0.00025205,9]
[388975530,1759552264591,-701.04,0.00025205,9]
[388975531,1759552264600,-500.0,0.00025205,9]
[388975532,1759552264611,-500.0,0.00025205,9]
[388975533,1759552264620,-500.0,0.00025205,9]
[388975534,1759552264629,-589.32323707,0.00025205,9]
[388975535,1759552264638,-853.01,0.00025205,9]
[388975536,1759552264647,-500.0,0.00025205,9]
[388975537,1759552264655,-500.0,0.00025205,9]
[388975538,1759552264664,-500.0,0.00025205,9]
[388975539,1759552264674,-500.0,0.00025205,9]
[388975540,1759552264683,-500.0,0.00025205,9]
[388975541,1759552264692,-500.0,0.00025205,9]
[388975542,1759552264702,-500.0,0.00025205,9]
[388975543,1759552264712,-567.6852017,0.00025205,9]
[388975544,1759552264721,-1503.56,0.00025205,9]
[388975545,1759552264733,-1125.42,0.00025205,9]
[388975546,1759552264743,-500.0,0.00025205,9]
[388975547,1759552264753,-500.0,0.00025205,9]
[388975548,1759552264762,-500.0,0.00025205,9]
[388975549,1759552264772,-645.58,0.00025205,9]
[388975550,1759552264781,-823.91,0.00025205,9]
[388975551,1759552264790,-1190.27,0.00025205,9]
[388975552,1759552264799,-500.0,0.00025205,9]
[388975553,1759552264810,-500.0,0.00025205,9]
[388975554,1759552264819,-610.13,0.00025205,9]
[388975555,1759552264829,-533.24,0.00025205,9]
[388975556,1759552264839,-500.0,0.00025205,9]
[388975557,1759552264848,-578.23,0.00025205,9]
[388975558,1759552264858,-2034.55,0.00025205,9]
[388975559,1759552264867,-500.0,0.00025205,9]
[388975560,1759552264876,-500.0,0.00025205,9]
[388975561,1759552264886,-1400.04,0.00025205,9]
[388975562,1759552264895,-500.0,0.00025205,9]
[388975563,1759552264904,-500.0,0.00025205,9]
[388975564,1759552264913,-1924.79,0.00025205,9]
[388975565,1759552264923,-1656.76,0.00025205,9]
[388975566,1759552264931,-500.0,0.00025205,9]
[388975567,1759552264941,-500.0,0.00025205,9]
[388975568,1759552264951,-500.0,0.00025205,9]
[388975569,1759552264960,-500.0,0.00025205,9]
[388975570,1759552264969,-500.0,0.00025205,9]
[388975571,1759552264979,-500.0,0.00025205,9]
[388975572,1759552264988,-500.0,0.00025205,9]
[388975573,1759552264997,-500.0,0.00025205,9]
[388975574,1759552265007,-1981.39,0.00025205,9]
[388975575,1759552265020,-774.29,0.00025205,9]
[388975576,1759552265030,-827.72,0.00025205,9]
[388975577,1759552265039,-2166.99,0.00025205,9]
[388975578,1759552265048,-771.59,0.00025205,9]
[388975579,1759552265058,-562.88,0.00025205,9]
[388975580,1759552265067,-500.0,0.00025205,9]
[388975581,1759552265076,-4064.82,0.00025205,9]
[388975582,1759552265085,-4016.92,0.00025205,9]
[388975583,1759552265097,-500.0,0.00025205,9]
[388975584,1759552265107,-500.0,0.00025205,9]
[388975585,1759552265115,-500.0,0.00025205,9]
[388975586,1759552265125,-1537.81,0.00025205,9]
[388975587,1759552265134,-500.0,0.00025205,9]
[388975588,1759552265144,-500.0,0.00025205,9]
[388975589,1759552265154,-500.0,0.00025205,9]
[388975590,1759552265165,-500.0,0.00025205,9]
[388975591,1759552265177,-511.34,0.00025205,9]
[388975592,1759552265196,-500.0,0.00025205,9]
[388975593,1759552265205,-522.15,0.00025205,9]
[388975594,1759552265215,-1441.78,0.00025205,9]
[388975595,1759552265224,-500.0,0.00025205,9]
[388975596,1759552265234,-500.0,0.00025205,9]
[388975597,1759552265243,-500.0,0.00025205,9]
[388975598,1759552265251,-4304.15,0.00025205,9]
[388975599,1759552265261,-500.0,0.00025205,9]
[388975600,1759552265269,-576.56,0.00025205,9]
[388975601,1759552265279,-500.0,0.00025205,9]
[388975602,1759552265287,-2200.51,0.00025205,9]
[388975603,1759552265296,-438.50681424,0.00025205,9]
[388975604,1759552265306,-500.0,0.00025205,9]
[388975605,1759552265315,-2562.74,0.00025205,9]
[388975606,1759552265324,-500.0,0.00025205,9]
[388975607,1759552265333,-500.0,0.00025205,9]
[388975608,1759552265343,-500.0,0.00025205,9]
[388975609,1759552265353,-832.05,0.00025205,9]
[388975610,1759552265362,-500.0,0.00025205,9]
[388975611,1759552265372,-861.85,0.00025205,9]
[388975612,1759552265382,-383.21343843,0.00025205,9]
[388975613,1759552265391,-500.0,0.00025205,7]
[388975614,1759552265401,-500.0,0.00025205,9]
[388975615,1759552265411,-457.88221471,0.00025205,9]
[388975616,1759552265420,-429.81151381,0.00025205,9]
[388975617,1759552265430,-500.0,0.00025205,9]
[388975618,1759552265440,-500.0,0.00025205,9]
[388975619,1759552265449,-500.0,0.00025205,9]
[388975620,1759552265458,-427.63374008,0.00025205,9]
[388975621,1759552265467,-1182.22,0.00025205,9]
[388975622,1759552265476,-500.0,0.00025205,9]
[388975623,1759552265485,-447.73352119,0.00025205,9]
[388975624,1759552265494,-500.0,0.00025205,9]
[388975625,1759552265503,-1139.13,0.00025205,9]
[388975626,1759552265512,-273.44983229,0.00025205,9]
[388975627,1759552265521,-500.0,0.00025205,9]
[388975628,1759552265530,-2051.75,0.00025205,9]
[388975629,1759552265539,-303.88415894,0.00025205,9]
[388975630,1759552265548,-546.58,0.00025205,9]
[388975631,1759552265558,-1259.4,0.00025205,9]
[388975632,1759552265567,-500.0,0.00025205,9]
[388975633,1759552265577,-813.68,0.00025205,9]
[388975634,1759552265587,-500.0,0.00025205,9]
[388975635,1759552265596,-545.19325996,0.00025205,9]
[388975636,1759552265605,-500.0,0.00025205,9]
[388975637,1759552265614,-500.0,0.00025205,9]
[388975638,1759552265623,-556.05,0.00025205,9]
[388975639,1759552265632,-1405.7,0.00025205,9]
[388975640,1759552265641,-500.0,0.00025205,9]
[388975641,1759552265651,-3066.37,0.00025205,9]
[388975642,1759552265660,-500.0,0.00025205,9]
[388975643,1759552265669,-500.0,0.00025205,9]
[388975644,1759552265679,-500.0,0.00025205,9]
[388975645,1759552265688,-500.0,0.00025205,9]
[388975646,1759552265697,-2556.15,0.00025205,9]
[388975647,1759552265706,-500.0,0.00025205,9]
[388975648,1759552265716,-1980.87,0.00025205,9]
[388975649,1759552265725,-500.0,0.00025205,9]
[388975650,1759552265734,-500.0,0.00025205,9]
[388975651,1759552265744,-500.0,0.00025205,9]
[388975652,1759552265753,-500.0,0.00025205,9]
[388975653,1759552265763,-505.27,0.00025205,9]
[388975654,1759552265772,-1254.95,0.00025205,9]
[388975655,1759552265781,-500.0,0.00025205,9]
[388975656,1759552265790,-500.0,0.00025205,9]
[388975657,1759552265801,-500.0,0.00025205,9]
[388975658,1759552265811,-500.0,0.00025205,9]
[388975659,1759552265820,-1333.55,0.00025205,9]
[388975660,1759552265829,-2922.08,0.00025205,9]
[388975661,1759552265839,-500.0,0.00025205,9]
[388975662,1759552265848,-956.2,0.00025205,9]
[388975663,1759552265858,-500.0,0.00025205,9]
[388975664,1759552265868,-500.0,0.00025205,9]
[388975665,1759552265878,-500.0,0.00025205,9]
[388975666,1759552265887,-1625.39,0.00025205,9]
[388975667,1759552265897,-578.2,0.00025205,9]
[388975668,1759552265906,-500.0,0.00025205,9]
[388975669,1759552265917,-500.0,0.00025205,9]
[388975670,1759552265926,-500.0,0.00025205,9]
[388975671,1759552265936,-737.65,0.00025205,9]
[388975672,1759552265946,-500.0,0.00025205,9]
[388975673,1759552265956,-616.71,0.00025205,9]
[388975674,1759552265966,-500.0,0.00025205,9]
[388975675,1759552265978,-500.0,0.00025205,9]
[388975676,1759552265987,-500.0,0.00025205,9]
[388975677,1759552265998,-572.83,0.00025205,9]
[388975678,1759552266007,-500.0,0.00025205,9]
[388975679,1759552266017,-501.84914345,0.00025205,9]
[388975680,1759552266026,-500.0,0.00025205,9]
[388975681,1759552266035,-2322.13,0.00025205,9]
[388975682,1759552266046,-500.0,0.00025205,9]
[388975683,1759552266057,-762.0,0.00025205,9]
[388975684,1759552266068,-500.0,0.00025205,9]
[388975685,1759552266079,-500.0,0.00025205,9]
[388975686,1759552266093,-507.84,0.00025205,9]
[388975687,1759552266103,-1382.13,0.00025205,9]
[388975688,1759552266113,-1483.33,0.00025205,9]
[388975689,1759552266122,-5464.98,0.00025205,9]
[388975690,1759552266131,-1628.92,0.00025205,9]
[388975691,1759552266142,-3976.04,0.00025205,9]
[388975692,1759552266153,-500.0,0.00025205,9]
[388975693,1759552266162,-500.0,0.00025205,9]
[388975694,1759552266172,-500.0,0.00025205,9]
[388975695,1759552266182,-500.0,0.00025205,9]
[388975696,1759552266193,-651.17,0.00025205,9]
[388975697,1759552266204,-793.14,0.00025205,9]
[388975698,1759552266214,-500.0,0.00025205,9]
[388975699,1759552266226,-2034.82,0.00025205,9]
[388975700,1759552266236,-2767.1,0.00025205,9]
[388975701,1759552266247,-1656.1,0.00025205,9]
[388975702,1759552266257,-1069.0,0.00025205,9]
[388975703,1759552266268,-500.0,0.00025205,9]
[388975704,1759552266277,-500.0,0.00025205,9]
[388975705,1759552266287,-682.82,0.00025205,9]
[388975706,1759552266297,-1397.27,0.00025205,9]
[388975707,1759552266307,-1083.4,0.00025205,9]
[388975708,1759552266317,-542.48,0.00025205,9]
[388975709,1759552266326,-500.0,0.00025205,9]
[388975710,1759552266336,-500.0,0.00025205,9]
[388975711,1759552266345,-685.9,0.00025205,9]
[388975712,1759552266355,-500.0,0.00025205,9]
[388975713,1759552266365,-757.23,0.00025205,9]
[388975714,1759552266375,-500.0,0.00025205,9]
[388975715,1759552266385,-500.0,0.00025205,9]
[388975716,1759552266394,-314.58000151,0.00025205,9]
[388975717,1759552266404,-3223.31,0.00025205,9]
[388975718,1759552266414,-500.0,0.00025205,9]
[388975719,1759552266424,-2378.52,0.00025205,9]
[388975720,1759552266435,-500.0,0.00025205,9]
[388975721,1759552266444,-1996.29,0.00025205,9]
[388975722,1759552266454,-500.0,0.00025205,9]
[388975723,1759552266465,-539.63,0.00025205,9]
[388975724,1759552266474,-942.13,0.00025205,9]
[388975725,1759552266484,-1714.22,0.00025205,9]
[388975726,1759552266494,-609.17,0.00025205,9]
[388975727,1759552266504,-500.0,0.00025205,9]
[388975728,1759552266513,-6107.45,0.00025205,9]
[388975729,1759552266523,-511.92,0.00025205,9]
[388975730,1759552266534,-713.29,0.00025205,9]
[388975731,1759552266544,-4732.54,0.00025205,9]
[388975732,1759552266554,-5420.65,0.00025205,9]
[388975733,1759552266564,-1744.22,0.00025205,9]
[388975734,1759552266573,-500.0,0.00025205,9]
[388975735,1759552266583,-1257.87,0.00025205,9]
[388975736,1759552266592,-500.0,0.00025205,9]
[388975737,1759552266603,-502.15,0.00025205,9]
[388975738,1759552266613,-500.0,0.00025205,9]
[388975739,1759552266622,-500.0,0.00025205,9]
[388975740,1759552266632,-1118.86,0.00025205,9]
[388975741,1759552266641,-1790.35,0.00025205,9]
[388975742,1759552266651,-1102.6,0.00025205,9]
[388975743,1759552266661,-500.0,0.00025205,9]
[388975744,1759552266670,-898.11,0.00025205,9]
[388975745,1759552266680,-500.0,0.00025205,9]
[388975746,1759552266689,-1701.01,0.00025205,9]
[388975747,1759552266699,-500.0,0.00025205,9]
[388975748,1759552266709,-1174.69,0.00025205,9]
[388975749,1759552266718,-570.58955426,0.00025205,9]
[388975750,1759552266727,-500.0,0.00025205,9]
[388975751,1759552266736,-500.0,0.00025205,9]
[388975752,1759552266747,-500.0,0.00025205,9]
[388975753,1759552266756,-500.0,0.00025205,9]
[388975754,1759552266766,-500.0,0.00025205,9]
[388975755,1759552266775,-500.0,0.00025205,9]
[388975756,1759552266784,-500.0,0.00025205,9]
[388975757,1759552266794,-500.0,0.00025205,9]
[388975758,1759552266803,-500.0,0.00025205,9]
[388975759,1759552266812,-1817.64,0.00025205,9]
[388975760,1759552266821,-1929.49,0.00025205,9]
[388975761,1759552266831,-1525.75,0.00025205,9]
[388975762,1759552266841,-899.63,0.00025205,9]
[388975763,1759552266850,-500.0,0.00025205,9]
[388975764,1759552266860,-1433.89,0.00025205,9]
[388975765,1759552266869,-464.4966581,0.00025205,9]
[388975766,1759552266879,-500.0,0.00025205,9]
[388975767,1759552266888,-525.43,0.00025205,9]
[388975768,1759552266898,-668.78,0.00025205,9]
[388975769,1759552266910,-2258.21,0.00025205,9]
[388975770,1759552266920,-500.0,0.00025205,9]
[388975771,1759552266930,-3947.36,0.00025205,9]
[388975772,1759552266939,-500.0,0.00025205,9]
[388975773,1759552266948,-500.0,0.00025205,7]
[388975774,1759552266958,-2516.54,0.00025205,9]
[388975775,1759552266968,-500.0,0.00025205,9]
[388975776,1759552266978,-500.0,0.00025205,9]
[388975777,1759552266989,-500.0,0.00025205,9]
[388975778,1759552266999,-5436.53,0.00025205,9]
[388975779,1759552267008,-500.0,0.00025205,9]
[388975780,1759552267018,-500.0,0.00025205,9]
[388975781,1759552267028,-500.0,0.00025205,9]
[388975782,1759552267037,-500.0,0.00025205,9]
[388975783,1759552267047,-1223.53,0.00025205,9]
[388975784,1759552267057,-844.14,0.00025205,9]
[388975785,1759552267067,-1000.0,0.00025205,9]
[388975786,1759552267077,-500.0,0.00025205,9]
[388975787,1759552267091,-8006.92,0.00025205,9]
[388975788,1759552267103,-1265.55,0.00025205,9]
[388975789,1759552267112,-500.0,0.00025205,9]
[388975790,1759552267122,-500.0,0.00025205,9]
[388975791,1759552267132,-500.0,0.00025205,9]
[388975792,1759552267142,-153.4133302,0.00025206,9]
[388975793,1759552267152,-151.0,0.00025206,9]
[388975794,1759552267163,-257.89691276,0.00025206,9]
[388975795,1759552267173,-500.0,0.00025206,9]
[388975796,1759552267183,-232.11326449,0.00025206,9]
[388975797,1759552267193,-151.0,0.00025206,9]
[388975798,1759552267203,-500.0,0.00025206,2]
[388975799,1759552267212,-1000.0,0.00025221,2]
[388975800,1759552267221,-621.76242606,0.00025221,2]
[388975801,1759552267231,-1001.31038916,0.00025221,2]
[388975802,1759552267240,-1001.62081677,0.00025221,2]
[388975803,1759552267249,-500.0,0.00025221,2]
[388975804,1759552267259,-421.39693963,0.00025221,2]
[388975805,1759552267270,-481.28229901,0.00025221,2]
[388975806,1759552267280,-501.82380182,0.00025221,2]
[388975807,1759552267290,-1000.0,0.00025221,2]
[388975808,1759552267301,-998.21899591,0.00025221,2]
[388975809,1759552267310,-1000.0,0.00025221,2]
[388975810,1759552267320,-501.82208464,0.00025221,2]
[388975811,1759552267330,-1005.35634323,0.00025221,2]
[388975812,1759552267340,-1000.0,0.00025221,2]
[388975813,1759552267350,-1000.0,0.00025221,2]
[388975814,1759552267361,-507.37597527,0.00025221,2]
[388975815,1759552267372,-1000.0,0.00025221,2]
[388975816,1759552267383,-1000.0,0.00025221,2]
[388975817,1759552267393,-1000.0,0.00025221,2]
[388975818,1759552267403,-661.2773178,0.00025254,2]
[388975819,1759552267413,-500.0,0.00025379,5]
[388975820,1759552267424,-160.0,0.00025395,2]
[388975821,1759552267434,-1037.69568193,0.00025421,2]
[388975822,1759552267445,-1000.92503276,0.00025421,2]
[388975823,1759552267455,-1000.0,0.00025421,2]
[388975824,1759552267465,-500.76066247,0.00025421,2]
[388975825,1759552267476,-1000.0,0.00025421,2]
[388975826,1759552267487,-1000.0,0.00025421,2]
[388975827,1759552267496,-1000.0,0.00025421,2]
[388975828,1759552267506,-1000.0,0.00025421,2]
[388975829,1759552267515,-500.37899681,0.00025421,2]
[388975830,1759552267525,-500.86093508,0.00025421,2]
[388975831,1759552267534,-500.64857616,0.00025421,2]
[388975832,1759552267543,-500.71497275,0.00025421,2]
[388975833,1759552267553,-900.0,0.00025469,3]
[388975834,1759552267562,-300.0,0.00025473,2]
[388975835,1759552267571,-541.67,0.00025479,9]
[388975836,1759552267580,-428.09623033,0.00025479,9]
[388975837,1759552267590,-500.0,0.00025479,9]
[388975838,1759552267599,-614.2,0.00025479,9]
[388975839,1759552267608,-500.0,0.00025479,9]
[388975840,1759552267618,-500.0,0.00025479,9]
[388975841,1759552267628,-547.2,0.00025479,9]
[388975842,1759552267637,-547.2,0.00025479,9]
[388975843,1759552267647,-481.48608736,0.00025479,9]
[388975844,1759552267656,-500.0,0.00025479,9]
[388975845,1759552267665,-603.06940771,0.00025479,9]
[388975846,1759552267675,-500.0,0.00025479,9]
[388975847,1759552267685,-500.0,0.00025479,9]
[388975848,1759552267855,-506.37,0.00025479,9]
[388975849,1759552267865,-1324.56,0.00025479,9]
[388975850,1759552267875,-373.44126908,0.00025479,9]
[388975851,1759552267884,-500.0,0.00025479,9]
[388975852,1759552267893,-500.0,0.00025479,9]
[388975853,1759552267902,-363.92080281,0.00025479,9]
[388975854,1759552267911,-500.0,0.00025479,9]
[388975855,1759552267921,-500.0,0.00025479,9]
[388975856,1759552267930,-500.0,0.00025479,9]
[388975857,1759552267939,-500.0,0.00025479,9]
[388975858,1759552267949,-500.0,0.00025479,9]
[388975859,1759552267959,-500.0,0.00025479,9]
[388975860,1759552267969,-500.0,0.00025479,9]
[388975861,1759552267979,-500.0,0.00025479,9]
[388975862,1759552267989,-835.57,0.00025479,9]
[388975863,1759552268001,-500.0,0.00025479,9]
[388975864,1759552268011,-500.0,0.00025479,7]
[388975865,1759552268020,-480.0,0.00025479,9]
[388975866,1759552268030,-500.0,0.00025479,9]
[388975867,1759552268039,-500.0,0.00025479,9]
[388975868,1759552268049,-500.0,0.00025479,9]
[388975869,1759552268059,-10958.0,0.00025479,9]
[388975870,1759552268068,-500.0,0.00025479,9]
[388975871,1759552268077,-500.0,0.00025479,9]
[388975872,1759552268091,-665.59,0.00025479,9]
[388975873,1759552268100,-500.0,0.00025479,9]
[388975874,1759552268109,-151.0,0.00025479,7]
[388975875,1759552268118,-151.0,0.00025479,7]
[388975876,1759552268127,-500.0,0.00025479,9]
[388975877,1759552268137,-151.0,0.00025479,7]
[388975878,1759552268146,-500.0,0.00025479,9]
[388975879,1759552268156,-784.22,0.00025479,9]
[388975880,1759552268165,-488.50029924,0.00025479,9]
[388975881,1759552268174,-500.0,0.00025479,9]
[388975882,1759552268183,-500.0,0.00025479,9]
[388975883,1759552268192,-500.0,0.00025479,9]
[388975884,1759552268201,-500.0,0.00025479,9]
[388975885,1759552268210,-500.0,0.00025479,9]
[388975886,1759552268219,-1605.64,0.00025479,9]
[388975887,1759552268229,-1064.74,0.00025479,9]
[388975888,1759552268238,-500.0,0.00025479,9]
[388975889,1759552268247,-500.0,0.00025479,9]
[388975890,1759552268256,-500.0,0.00025479,9]
[388975891,1759552268266,-452.77920076,0.00025479,9]
[388975892,1759552268275,-6754.91,0.00025479,9]
[388975893,1759552268285,-423.7328509,0.00025479,9]
[388975894,1759552268294,-500.0,0.00025479,9]
[388975895,1759552268304,-500.0,0.00025479,9]
[388975896,1759552268313,-500.0,0.00025479,9]
[388975897,1759552268323,-500.0,0.00025479,9]
[388975898,1759552268333,-500.0,0.00025479,9]
[388975899,1759552268342,-500.0,0.00025479,9]
[388975900,1759552268351,-500.0,0.00025479,9]
[388975901,1759552268360,-500.0,0.00025479,9]
[388975902,1759552268369,-744.02,0.00025479,9]
[388975903,1759552268378,-500.0,0.00025479,9]
[388975904,1759552268387,-1696.76,0.00025479,9]
[388975905,1759552268397,-500.0,0.00025479,9]
[388975906,1759552268406,-500.0,0.00025479,9]
[388975907,1759552268415,-500.0,0.00025479,9]
[388975908,1759552268425,-500.0,0.00025479,9]
[388975909,1759552268434,-711.43,0.00025479,9]
[388975910,1759552268443,-500.0,0.00025479,9]
[388975911,1759552268452,-500.0,0.00025479,9]
[388975912,1759552268461,-500.0,0.00025479,9]
[388975913,1759552268471,-500.0,0.00025479,9]
[388975914,1759552268480,-596.87,0.00025479,9]
[388975915,1759552268489,-500.0,0.00025479,9]
[388975916,1759552268499,-851.28,0.00025479,9]
[388975917,1759552268508,-500.0,0.00025479,9]
[388975918,1759552268518,-775.34,0.00025479,9]
[388975919,1759552268528,-500.0,0.00025479,9]
[388975920,1759552268537,-500.0,0.00025479,9]
[388975921,1759552268547,-500.0,0.00025479,9]
[388975922,1759552268557,-500.0,0.00025479,9]
[388975923,1759552268567,-500.0,0.00025479,9]
[388975924,1759552268577,-500.0,0.00025479,9]
[388975925,1759552268586,-500.0,0.00025479,9]
[388975926,1759552268595,-1119.79,0.00025479,9]
[388975927,1759552268604,-500.0,0.00025479,9]
[388975928,1759552268614,-553.09,0.00025479,9]
[388975929,1759552268623,-735.43,0.00025479,9]
[388975930,1759552268632,-500.0,0.00025479,9]
[388975931,1759552268641,-500.0,0.00025479,9]